bitfinex/quotes_ETHUSD_20260121
["timestamp","ask_amount","ask_price","bid_price","bid_amount"]
[1768986228954,0.001,2969.8,2969.4,12.26564867]
[1768986229660,11.81304285,2970.3,2969.7,12.26564867]
[1768986232567,0.001,2969.8,2969.7,12.26564867]
[1768986232779,11.81224285,2970.2,2969.7,14.31953855]
[1768986236159,0.0008,2970.3,2969.8,12.26564867]
[1768986236340,11.81304285,2970.6,2970.3,12.26564867]
[1768986236341,0.0008,2970.6,2970.3,12.26564867]
[1768986237451,0.0008,2970.9,2970.3,12.26564867]
[1768986237650,11.81304285,2970.9,2970.4,0.55055632]
[1768986237855,11.81304285,2970.9,2970.3,12.26564867]
[1768986240371,11.81224285,2970.7,2969.7,16.18992738]
[1768986240543,11.81224285,2970.7,2969.7,3.92427871]
[1768986240870,11.81224285,2970.7,2969.8,12.26564867]
[1768986241262,11.81224285,2970.7,2969.8,15.63285817]
[1768986241468,11.81224285,2970.7,2969.8,12.26564867]
[1768986241666,12.99354714,2970.7,2969.7,3.92426896]
[1768986241840,12.59559332,2970.5,2969.8,3.36721866]
[1768986242041,12.59559332,2970.5,2969.9,12.67764791]
[1768986244157,12.59659332,2970.5,2969.9,12.67764791]
[1768986245475,12.59659332,2970.5,2970.0,12.67764791]
[1768986245669,12.59659332,2970.5,2970.0,14.77270486]
[1768986246259,0.001,2970.5,2970.1,12.67764791]
[1768986246461,12.59639332,2970.9,2970.1,12.67764791]
[1768986249398,12.59639332,2970.9,2970.1,3.3668653]
[1768986249556,12.59639332,2970.9,2970.3,12.67764791]
[1768986249750,12.59639332,2970.9,2970.3,14.77268092]
[1768986250349,0.0008,2970.9,2970.3,14.77268092]
[1768986251563,12.59639332,2971.2,2970.6,12.67764791]
[1768986251971,0.0016,2971.5,2970.9,12.67764791]
[1768986252155,12.59559332,2971.4,2970.9,12.67764791]
[1768986252570,12.59559332,2971.4,2970.9,13.14647249]
[1768986253276,0.0016,2971.5,2970.9,13.14647249]
[1768986253449,0.0016,2971.5,2971.0,12.67764791]
[1768986257770,0.0016,2971.5,2970.9,0.46882458]
[1768986257771,12.14117985,2971.5,2970.9,0.46882458]
[1768986257965,12.13957985,2971.3,2970.8,0.557]
[1768986258160,12.13957985,2971.3,2970.5,12.43957158]
[1768986258360,12.13957985,2971.3,2970.5,12.99657158]
[1768986258565,12.13957985,2971.3,2970.5,0.557]
[1768986258778,12.13957985,2971.3,2970.4,12.43957158]
[1768986259098,12.13957985,2971.1,2970.5,1.45366046]
[1768986259514,12.13957985,2971.1,2970.5,13.89323204]
[1768986262703,0.0016,2971.5,2970.6,12.43957158]
[1768986263002,0.0016,2971.5,2970.9,12.43957158]
[1768986263491,12.14117985,2971.5,2970.9,12.43957158]
[1768986264099,12.14117985,2971.5,2970.9,14.17411043]
[1768986265004,12.14117985,2971.5,2970.9,1.73453885]
[1768986265409,12.14117985,2971.5,2970.9,14.17411043]
[1768986265626,12.14117985,2971.5,2970.6,12.43957158]
[1768986265782,12.13957985,2971.3,2970.5,12.99657158]
[1768986266105,12.13957985,2971.3,2970.6,12.43957158]
[1768986268396,12.13957985,2971.3,2970.8,0.002]
[1768986268709,12.14057985,2971.3,2970.8,0.002]
[1768986269483,0.001,2971.3,2970.8,13.68572874]
[1768986272912,0.0016,2971.5,2971.1,4.90581687]
[1768986273082,0.0016,2971.5,2971.2,12.43957158]
[1768986273278,0.0016,2971.5,2971.3,14.17411043]
[1768986273493,0.0016,2971.5,2971.3,1.73453885]
[1768986274093,12.14117985,2971.5,2971.3,1.73453885]
[1768986274413,12.14117985,2971.5,2971.0,12.43957158]
[1768986276415,0.04206771,2971.4,2970.8,0.002]
[1768986276599,12.13957985,2971.3,2970.8,0.002]
[1768986278106,0.04207054,2971.2,2970.8,0.002]
[1768986278312,0.0016,2971.5,2970.8,0.002]
[1768986278492,13.07488635,2971.4,2970.8,12.44157158]
[1768986278894,13.07488635,2971.4,2970.8,0.002]
[1768986280419,13.07488635,2971.4,2970.3,0.002]
[1768986280420,12.13957985,2971.2,2970.3,0.002]
[1768986280599,12.13957985,2971.2,2970.3,12.44157158]
[1768986281712,12.13957985,2971.2,2971.0,0.002]
[1768986282023,12.13957985,2971.0,2970.3,12.44157158]
[1768986282225,12.13957985,2971.0,2970.3,0.002]
[1768986283423,12.13957985,2971.0,2970.0,0.002]
[1768986284995,12.13957985,2971.0,2970.0,12.44157158]
[1768986287027,12.13957985,2971.0,2970.0,0.002]
[1768986287219,12.2853954,2970.8,2970.0,0.002]
[1768986287423,12.2853954,2970.8,2970.0,12.1806113]
[1768986294533,12.2853954,2970.8,2970.2,0.002]
[1768986298427,12.2853954,2970.6,2970.2,0.002]
[1768986300327,12.2853954,2970.6,2970.0,12.1806113]
[1768986300938,12.2853954,2970.4,2969.6,0.002]
[1768986301144,3.36621021,2970.7,2969.6,0.002]
[1768986301145,12.2853954,2970.2,2969.6,0.002]
[1768986301347,12.22262452,2970.0,2969.6,0.002]
[1768986302351,13.94159488,2970.1,2969.6,11.77726089]
[1768986302524,12.22262452,2970.1,2969.6,11.77726089]
[1768986306440,12.22262452,2970.1,2969.8,0.002]
[1768986307039,12.22262452,2970.1,2969.6,11.77726089]
[1768986309126,12.22262452,2970.1,2969.6,0.002]
[1768986309458,12.22262452,2969.9,2969.6,0.002]
[1768986309761,12.22262452,2969.9,2969.5,0.002]
[1768986311169,12.22262452,2969.9,2969.1,11.77526089]
[1768986319470,12.22262452,2969.9,2969.3,12.31993999]
[1768986319672,12.22362452,2969.9,2969.3,12.31993999]
[1768986319863,13.56821322,2969.9,2969.3,12.31993999]
[1768986320371,12.22362452,2969.9,2969.3,12.31993999]
[1768986320568,0.04209037,2969.8,2969.3,12.31993999]
[1768986320761,12.92676246,2969.7,2969.3,0.002]
[1768986326569,12.92776246,2969.9,2969.3,12.31993999]
[1768986330291,12.92776246,2969.9,2969.3,0.002]
[1768986330595,12.92676246,2969.7,2969.3,0.002]
[1768986332590,0.001,2969.9,2969.3,12.31993999]
[1768986332899,12.92776246,2969.9,2969.5,8.94712721]
[1768986333048,12.92776246,2969.9,2969.3,12.31993999]
[1768986338581,14.22053871,2969.9,2969.3,12.31993999]
[1768986339303,14.22053871,2969.9,2969.1,12.31793999]
[1768986339513,12.92676246,2969.7,2969.1,12.31793999]
[1768986345506,12.92676246,2969.7,2969.3,0.002]
[1768986345696,12.92776246,2969.7,2969.3,0.002]
[1768986347007,14.22053871,2969.7,2969.3,0.002]
[1768986347212,12.32524765,2969.5,2969.0,0.002]
[1768986348716,12.32524765,2969.5,2968.9,0.002]
[1768986349022,12.32524765,2969.5,2968.8,0.559]
[1768986349309,12.32524765,2969.3,2968.8,0.559]
[1768986350716,12.32524765,2969.3,2968.8,12.36966994]
[1768986352716,12.32524765,2969.6,2968.8,12.36966994]
[1768986357796,12.32624765,2969.4,2968.8,12.36966994]
[1768986361129,12.32524765,2969.2,2968.8,0.559]
[1768986361428,13.55787242,2969.2,2968.8,0.559]
[1768986361597,12.32524765,2969.2,2968.8,0.559]
[1768986362726,12.18126361,2969.4,2968.8,12.56750003]
[1768986363632,0.04209746,2969.3,2968.8,12.56750003]
[1768986363829,0.04209746,2969.3,2968.8,0.559]
[1768986363830,12.18026361,2969.2,2968.8,0.559]
[1768986364136,12.18026361,2969.2,2968.4,0.002]
[1768986364332,12.18026361,2969.0,2968.4,0.002]
[1768986365203,12.18026361,2969.0,2968.1,0.002]
[1768986365743,12.18026361,2969.0,2968.1,12.01050003]
[1768986369342,12.18026361,2969.0,2968.3,0.002]
[1768986369543,0.001,2968.8,2968.1,12.01050003]
[1768986369840,12.18026361,2968.7,2968.1,12.01050003]
[1768986370043,13.39838997,2968.7,2968.1,12.01050003]
[1768986375469,13.39838997,2968.7,2967.8,0.0036]
[1768986375470,12.94067944,2968.1,2967.8,0.0036]
[1768986375947,12.94147944,2968.1,2967.6,0.002]
[1768986377977,12.94147944,2968.1,2967.3,0.002]
[1768986377978,12.94067944,2967.8,2967.3,0.002]
[1768986379157,12.94067944,2967.8,2967.1,12.87374259]
[1768986379665,12.94067944,2967.8,2967.0,12.87574259]
[1768986381031,1.78500099,2968.0,2967.0,0.002]
[1768986381032,12.94067944,2967.5,2967.0,0.002]
[1768986381336,12.94067944,2967.3,2966.8,0.002]
[1768986381835,12.94067944,2967.3,2966.7,0.002]
[1768986382557,12.94067944,2967.3,2967.0,0.002]
[1768986382744,12.94067944,2967.3,2966.7,0.002]
[1768986382939,12.94067944,2967.1,2966.7,0.002]
[1768986383346,12.94067944,2967.1,2966.7,12.87574259]
[1768986384571,14.72560043,2967.4,2966.7,12.87574259]
[1768986384768,12.94067944,2967.8,2966.7,0.002]
[1768986384930,12.94067944,2967.6,2966.7,12.87574259]
[1768986385134,12.94067944,2967.4,2966.7,0.002]
[1768986385562,12.94067944,2967.4,2966.6,12.87574259]
[1768986385764,12.94067944,2967.2,2966.6,0.002]
[1768986386163,12.94067944,2967.2,2966.4,0.559]
[1768986386356,12.94067944,2967.2,2966.4,0.002]
[1768986387273,12.94067944,2967.2,2966.0,0.002]
[1768986387274,12.94067944,2966.6,2966.0,0.002]
[1768986387641,12.94067944,2966.6,2965.9,0.0036]
[1768986388864,4.90853047,2966.7,2965.8,12.87574259]
[1768986388865,12.94067944,2966.1,2965.8,0.002]
[1768986389242,12.94067944,2966.1,2965.6,0.002]
[1768986389439,12.94067944,2965.9,2965.2,12.87374259]
[1768986389642,12.94067944,2965.9,2965.3,12.87374259]
[1768986389844,12.94067944,2965.9,2965.4,12.87574259]
[1768986390151,12.94147944,2966.2,2965.4,12.87574259]
[1768986394351,12.94147944,2966.2,2965.6,0.002]
[1768986394538,12.94147944,2966.2,2965.4,12.87574259]
[1768986394873,12.94067944,2966.0,2965.4,12.87574259]
[1768986395754,12.94067944,2966.0,2965.4,0.002]
[1768986395966,12.94067944,2966.0,2965.1,12.87374259]
[1768986398470,0.04214572,2965.9,2965.1,12.87374259]
[1768986398675,12.94067944,2965.8,2965.1,12.87374259]
[1768986403190,12.94067944,2966.0,2965.1,12.87374259]
[1768986403485,0.04214572,2965.9,2965.1,12.87374259]
[1768986405187,0.0008,2966.2,2965.6,12.87374259]
[1768986406077,0.0008,2966.5,2966.0,12.86004648]
[1768986406256,12.11384668,2967.1,2966.2,12.86004648]
[1768986406452,12.11384668,2967.1,2966.5,12.86004648]
[1768986406655,12.11384668,2967.6,2966.5,12.86004648]
[1768986407070,12.11384668,2967.6,2966.8,12.86004648]
[1768986408090,18.44384668,2967.7,2966.8,12.86004648]
[1768986408673,12.15596825,2967.6,2966.8,12.86004648]
[1768986408878,12.11384668,2967.6,2966.8,12.86004648]
[1768986409084,0.04212299,2967.5,2966.8,12.86004648]
[1768986409279,12.11384668,2967.5,2966.8,12.86004648]
[1768986410289,12.11384668,2967.5,2966.8,14.97398864]
[1768986411375,12.11384668,2967.4,2966.8,14.97398864]
[1768986416178,12.15597251,2967.3,2966.8,14.97398864]
[1768986416494,12.11384668,2967.3,2966.8,14.97398864]
[1768986416678,12.11384668,2967.3,2966.8,12.86004648]
[1768986417183,12.11384668,2967.1,2966.5,12.86004648]
[1768986417499,4.91445436,2967.6,2966.5,12.86004648]
[1768986417500,12.11384668,2967.0,2966.5,12.86004648]
[1768986418605,12.11384668,2967.5,2966.5,12.86004648]
[1768986418806,12.11384668,2967.3,2966.5,12.86004648]
[1768986419106,12.11484668,2967.2,2966.5,12.86004648]
[1768986420707,12.15597535,2967.1,2966.5,12.86004648]
[1768986420874,12.11384668,2967.1,2966.5,12.86004648]
[1768986422813,0.001,2967.2,2966.6,12.65279176]
[1768986423021,12.10561225,2967.5,2967.0,12.65279176]
[1768986423215,12.10561225,2967.6,2967.0,12.65279176]
[1768986424140,12.10561225,2968.0,2967.0,17.56724612]
[1768986424323,0.0008,2968.1,2967.7,12.65279176]
[1768986424657,0.0008,2968.4,2967.8,3.36949929]
[1768986424918,0.0008,2968.4,2968.0,12.65279176]
[1768986425542,0.001,2968.8,2968.0,12.65279176]
[1768986425996,12.1487168,2968.8,2968.0,12.65279176]
[1768986426195,12.10661225,2968.8,2968.0,12.65279176]
[1768986426399,12.10661225,2968.8,2968.0,13.40595396]
[1768986431337,12.10661225,2968.6,2968.0,13.40595396]
[1768986431709,12.10661225,2968.6,2967.9,0.002]
[1768986431911,12.10561225,2968.4,2967.9,12.65479176]
[1768986432237,12.10661225,2968.6,2967.9,12.65479176]
[1768986432437,0.0421088,2968.5,2967.9,12.65479176]
[1768986433014,12.10661225,2968.6,2967.9,12.65479176]
[1768986433228,13.31737347,2968.6,2967.9,12.65479176]
[1768986436535,0.0421088,2968.5,2967.9,12.65479176]
[1768986436732,13.31737347,2968.6,2967.9,12.65479176]
[1768986437376,12.10661225,2968.6,2968.0,12.6612919]
[1768986437516,0.001,2968.6,2968.0,12.6612919]
[1768986438345,12.35743257,2968.6,2968.0,12.6612919]
[1768986443559,0.001,2968.4,2968.0,12.6612919]
[1768986446259,0.001,2968.4,2968.1,13.2182919]
[1768986448062,12.35743257,2968.8,2968.3,4.91445436]
[1768986448233,12.35743257,2968.8,2968.4,12.6612919]
[1768986448633,12.35743257,2968.8,2968.3,4.91445436]
[1768986448634,12.35743257,2968.8,2968.3,12.6612919]
[1768986453579,12.35743257,2968.8,2967.9,12.6632919]
[1768986453580,12.35643257,2968.6,2967.9,12.6632919]
[1768986453763,12.35643257,2968.4,2968.0,0.557]
[1768986454437,12.35643257,2968.4,2968.0,13.2182919]
[1768986455250,12.35643257,2968.4,2968.2,0.002]
[1768986460571,12.35643257,2968.4,2967.9,12.6632919]
[1768986460777,12.35643257,2968.4,2967.9,0.002]
[1768986460977,12.35643257,2968.2,2967.9,0.002]
[1768986461761,1.23564326,2968.3,2967.9,12.6632919]
[1768986462076,12.35643257,2968.4,2967.9,12.6632919]
[1768986462575,12.35643257,2968.4,2967.9,0.002]
[1768986463472,12.35643257,2968.4,2967.9,12.6632919]
[1768986465645,12.35643257,2968.4,2967.9,0.002]
[1768986467286,12.11950688,2968.2,2967.9,0.002]
[1768986468375,12.11950688,2968.2,2968.1,0.002]
[1768986469847,12.11950688,2968.5,2968.1,0.002]
[1768986470043,13.33155757,2968.5,2968.1,0.002]
[1768986470647,0.001,2968.8,2968.3,12.41213612]
[1768986470845,12.12050688,2968.8,2968.3,12.41213612]
[1768986471180,0.001,2968.8,2968.3,12.41213612]
[1768986471912,12.11950688,2968.9,2968.3,12.41213612]
[1768986472072,0.001,2969.4,2968.9,12.41213612]
[1768986472448,12.16260292,2969.4,2968.9,12.41213612]
[1768986472653,12.12050688,2969.4,2968.9,12.41213612]
[1768986475484,12.12050688,2969.4,2968.9,13.65334973]
[1768986477694,12.12050688,2969.4,2968.9,1.24121361]
[1768986477991,12.12050688,2969.4,2968.7,12.41213612]
[1768986478396,12.12050688,2969.4,2967.9,3.37135711]
[1768986478397,0.001,2969.4,2968.9,4.90796169]
[1768986478592,0.001,2969.4,2969.0,12.41213612]
[1768986479999,0.001,2969.4,2969.1,12.41213612]
[1768986480169,0.001,2969.4,2969.2,13.99016116]
[1768986480372,0.001,2969.7,2969.3,12.41213612]
[1768986481802,12.11950688,2969.9,2969.3,12.19302949]
[1768986481969,12.43529007,2970.3,2969.3,12.19302949]
[1768986482171,12.43529007,2970.3,2969.4,12.19302949]
[1768986482482,12.47737477,2970.2,2969.6,12.19302949]
[1768986482691,12.43529007,2970.2,2969.3,12.19302949]
[1768986483001,12.43529007,2970.0,2969.4,12.19302949]
[1768986484098,15.678876,2970.7,2969.4,12.19302949]
[1768986484304,12.43529007,2970.4,2969.4,12.19302949]
[1768986484506,12.43529007,2970.2,2969.4,14.39771052]
[1768986484797,12.43529007,2970.0,2969.4,14.39771052]
[1768986487011,12.43529007,2970.1,2969.5,12.19302949]
[1768986487231,12.43529007,2970.5,2969.8,12.19302949]
[1768986487715,12.43529007,2970.9,2969.8,13.90312861]
[1768986488125,12.43529007,2970.9,2970.1,12.19302949]
[1768986488503,12.43529007,2971.4,2970.4,12.19302949]
[1768986489506,12.47735919,2971.3,2970.5,12.19302949]
[1768986489705,12.43529007,2971.3,2970.5,12.19302949]
[1768986489887,12.43529007,2971.1,2970.5,0.557]
[1768986490086,12.43529007,2970.9,2970.2,12.19302949]
[1768986490284,12.43529007,2970.9,2970.3,12.75002949]
[1768986490609,12.43529007,2971.2,2970.4,12.19302949]
[1768986491924,12.43529007,2971.4,2970.6,4.90796169]
[1768986492126,0.0016,2971.5,2970.7,12.68382566]
[1768986492486,12.43689007,2971.5,2970.7,12.68382566]
[1768986492888,12.43529007,2971.3,2970.7,12.19302949]
[1768986493113,12.43529007,2971.1,2970.7,12.19302949]
[1768986494114,12.43529007,2971.1,2970.6,0.557]
[1768986494316,12.43529007,2971.1,2970.6,12.19302949]
[1768986494500,12.43529007,2971.1,2970.6,12.75002949]
[1768986494702,12.43529007,2971.4,2970.6,14.36167569]
[1768986495230,12.43529007,2971.4,2970.6,12.75002949]
[1768986495392,12.43529007,2971.4,2970.4,12.10881365]
[1768986495592,12.12351294,2971.2,2970.5,0.557]
[1768986496118,12.12351294,2971.2,2970.5,12.66581365]
[1768986496720,12.12511294,2971.5,2970.7,12.10881365]
[1768986497923,0.0016,2971.5,2970.7,14.20283053]
[1768986498117,12.12511294,2971.5,2970.7,14.20283053]
[1768986499625,0.0016,2971.5,2971.0,12.10881365]
[1768986499799,12.12431294,2971.8,2971.0,12.10881365]
[1768986500000,12.12431294,2971.8,2971.2,12.10881365]
[1768986500198,12.12351294,2971.6,2971.0,0.557]
[1768986500394,12.12351294,2971.4,2971.0,0.557]
[1768986501040,12.12351294,2971.4,2971.0,12.66581365]
[1768986502416,0.0008,2971.8,2971.0,12.66581365]
[1768986502616,12.12351294,2971.7,2971.0,14.2689931]
[1768986503238,0.04206488,2971.6,2971.0,13.7119931]
[1768986503541,12.12351294,2971.6,2970.9,12.66581365]
[1768986504631,12.12351294,2971.6,2971.0,12.10881365]
[1768986504838,12.12431294,2971.8,2971.1,12.10881365]
[1768986505048,0.0008,2971.8,2971.4,12.10881365]
[1768986505247,12.12431294,2972.3,2971.7,12.10881365]
[1768986505403,13.33674423,2972.3,2971.7,12.10881365]
[1768986506064,12.12431294,2972.3,2971.7,12.10881365]
[1768986506211,12.12431294,2972.3,2971.4,12.10881365]
[1768986506412,12.12431294,2972.3,2971.4,0.557]
[1768986506413,12.12351294,2972.1,2971.4,0.557]
[1768986506723,12.12351294,2971.9,2971.4,0.557]
[1768986507704,12.12351294,2971.9,2971.4,12.66581365]
[1768986508713,12.12351294,2971.7,2971.3,0.557]
[1768986509751,12.12351294,2971.7,2971.2,12.10881365]
[1768986509945,12.12351294,2971.8,2971.2,12.10881365]
[1768986511265,12.12351294,2971.8,2971.0,12.66581365]
[1768986511738,12.12351294,2971.8,2971.0,12.10881365]
[1768986511928,12.12351294,2971.8,2971.0,14.25209823]
[1768986513639,12.12351294,2971.6,2971.0,12.10881365]
[1768986513962,12.12351294,2971.4,2970.9,0.559]
[1768986514159,12.12351294,2971.4,2970.9,0.002]
[1768986514362,12.12351294,2971.4,2970.8,12.10881365]
[1768986514363,4.90796169,2971.3,2970.6,0.002]
[1768986514664,11.63793556,2971.8,2970.6,0.002]
[1768986514665,13.8266604,2971.2,2970.6,0.002]
[1768986517166,13.8266604,2971.2,2970.8,0.001]
[1768986517867,13.8266604,2971.2,2970.6,0.002]
[1768986522070,12.12351294,2971.0,2970.6,0.002]
[1768986525560,3.36468963,2972.1,2970.7,12.5066992]
[1768986525762,11.95680582,2971.8,2970.6,0.002]
[1768986525967,11.95680582,2971.5,2970.6,0.002]
[1768986526274,11.95680582,2971.2,2969.9,12.5066992]
[1768986526481,11.95680582,2971.0,2969.9,12.5066992]
[1768986526646,11.95680582,2970.8,2969.9,12.5066992]
[1768986528872,11.95680582,2970.8,2970.1,12.5066992]
[1768986529186,11.95680582,2970.8,2970.5,0.002]
[1768986529680,11.95680582,2971.2,2970.5,12.5086992]
[1768986529893,11.95680582,2971.4,2970.5,12.5086992]
[1768986530884,11.95680582,2971.4,2970.7,12.5066992]
[1768986531084,11.99887494,2971.3,2970.7,12.5066992]
[1768986531283,11.95680582,2971.3,2970.5,0.002]
[1768986531586,11.95680582,2970.8,2970.0,12.5066992]
[1768986532083,1.19568058,2971.2,2970.5,12.5066992]
[1768986532255,1.23775112,2971.2,2970.5,12.5066992]
[1768986532455,13.19455694,2971.2,2970.5,12.5066992]
[1768986532792,13.1524864,2971.2,2970.5,12.5066992]
[1768986534186,0.04207195,2971.1,2970.5,12.5066992]
[1768986534389,11.99887777,2971.1,2970.5,12.5066992]
[1768986534586,13.27626165,2971.1,2970.3,12.5066992]
[1768986536587,11.95680582,2970.9,2970.3,12.5066992]
[1768986540963,11.95680582,2970.9,2970.1,12.5066992]
[1768986541183,12.67031461,2970.7,2969.7,12.73693672]
[1768986541380,12.67031461,2970.5,2969.7,12.73693672]
[1768986541691,12.67031461,2970.5,2970.3,0.002]
[1768986547501,1.27123908,2970.6,2970.3,0.002]
[1768986547699,13.94155369,2970.6,2970.3,0.002]
[1768986548206,12.67031461,2970.7,2970.3,0.002]
[1768986548372,0.001,2970.8,2970.3,12.73893672]
[1768986548571,12.67131461,2971.6,2970.6,12.73693672]
[1768986548899,12.67031461,2971.4,2970.6,12.73693672]
[1768986549070,12.67031461,2971.2,2970.6,12.73693672]
[1768986549266,0.04207195,2971.1,2970.6,12.73693672]
[1768986549470,12.71238656,2971.1,2970.6,12.73693672]
[1768986549689,12.67031461,2971.1,2970.6,12.73693672]
[1768986553811,0.001,2970.9,2970.6,12.73693672]
[1768986557283,0.001,2970.9,2970.5,11.35799949]
[1768986559705,12.19514102,2970.9,2970.5,11.35799949]
[1768986559905,0.001,2970.9,2970.5,11.35799949]
[1768986561305,12.23721581,2970.9,2970.5,11.35799949]
[1768986561482,12.19514102,2970.9,2970.5,11.35799949]
[1768986561684,0.001,2970.9,2970.5,11.35799949]
[1768986565892,0.001,2970.9,2970.7,0.002]
[1768986567818,12.19514102,2970.9,2970.7,0.002]
[1768986568022,12.23621722,2970.8,2970.5,0.002]
[1768986568203,12.19414102,2970.8,2970.5,0.002]
[1768986569937,12.19414102,2970.6,2970.5,0.002]
[1768986581762,12.19414102,2970.6,2970.0,11.35386108]
[1768986588640,12.19414102,2970.6,2969.7,10.62468389]
[1768986588840,11.19833341,2970.4,2969.7,10.62468389]
[1768986589240,11.19833341,2970.4,2970.2,0.001]
[1768986589440,11.19833341,2970.4,2969.8,10.62468389]
[1768986590068,0.04208329,2970.3,2969.8,10.62468389]
[1768986590241,11.2404167,2970.3,2969.8,10.62468389]
[1768986590441,11.19833341,2970.3,2969.8,10.62468389]
[1768986590770,11.19833341,2970.2,2969.7,10.62468389]
[1768986592641,11.19833341,2970.2,2969.6,0.002]
[1768986592847,11.19833341,2970.2,2969.6,10.62668389]
[1768986593580,0.04208612,2970.1,2969.6,10.62668389]
[1768986593887,1.24177475,2970.3,2969.6,10.62668389]
[1768986594174,11.19833341,2970.4,2969.6,10.62668389]
[1768986596798,11.19833341,2970.7,2969.6,10.62668389]
[1768986597126,11.24041245,2970.6,2969.6,10.62668389]
[1768986597252,11.19833341,2970.6,2969.6,10.62668389]
[1768986600251,0.04208045,2970.5,2969.6,10.62668389]
[1768986600453,1.12404139,2970.4,2969.6,10.62668389]
[1768986600778,0.04208329,2970.3,2969.6,10.62668389]
[1768986601007,0.04208329,2970.3,2969.9,10.62468389]
[1768986601687,0.04308187,2970.4,2969.9,10.62468389]
[1768986603302,0.001,2970.4,2969.9,10.62468389]
[1768986604319,0.001,2970.9,2969.8,0.002]
[1768986604624,0.001,2970.9,2970.4,10.57859139]
[1768986604909,10.48350666,2971.4,2970.5,10.57859139]
[1768986605410,10.52557578,2971.3,2970.5,10.57859139]
[1768986605610,10.48350666,2971.3,2970.5,10.57859139]
[1768986606814,0.001,2971.6,2970.5,10.57859139]
[1768986606815,0.04207054,2971.2,2970.5,10.57859139]
[1768986606978,0.04206771,2971.4,2970.5,12.13602897]
[1768986608517,0.001,2971.6,2970.7,10.57859139]
[1768986609192,0.001,2971.6,2971.0,10.57859139]
[1768986610718,10.48350666,2972.1,2971.0,10.57859139]
[1768986611088,10.52556587,2972.0,2971.0,10.57859139]
[1768986611296,10.48350666,2972.0,2970.6,10.57859139]
[1768986611502,10.48350666,2971.8,2970.6,11.13559139]
[1768986611696,10.48350666,2971.6,2970.7,10.57859139]
[1768986611899,0.04206629,2971.5,2970.7,10.57859139]
[1768986612614,0.04206488,2971.6,2970.7,10.57859139]
[1768986612921,10.48350666,2971.7,2970.9,10.57859139]
[1768986613109,10.52557154,2971.6,2970.9,10.57859139]
[1768986613287,10.48350666,2971.6,2970.9,10.57859139]
[1768986613487,0.04206629,2971.5,2970.9,10.57859139]
[1768986613683,0.001,2971.3,2970.9,10.57859139]
[1768986616921,10.30001357,2971.3,2970.9,10.57859139]
[1768986617118,10.30001357,2971.3,2970.7,9.39122543]
[1768986617119,10.75689667,2971.3,2970.7,9.39122543]
[1768986617319,10.30001357,2971.3,2970.7,9.39122543]
[1768986617908,0.001,2971.3,2970.7,9.39122543]
[1768986619437,10.34208269,2971.3,2970.7,9.39122543]
[1768986619737,10.30001357,2971.3,2970.7,9.39122543]
[1768986619929,0.04207054,2971.2,2970.7,9.39122543]
[1768986621941,10.30001357,2971.3,2970.7,9.39122543]
[1768986622740,0.001,2971.3,2970.7,9.39122543]
[1768986622920,0.001,2971.3,2970.7,10.66718923]
[1768986624338,0.04306912,2971.3,2970.7,10.66718923]
[1768986624544,0.001,2971.3,2970.7,10.66718923]
[1768986626217,0.001,2971.3,2970.9,9.39222543]
[1768986628855,0.04306912,2971.3,2970.9,9.39222543]
[1768986629528,10.34208269,2971.3,2970.9,9.39222543]
[1768986629728,10.30001357,2971.3,2970.9,9.39222543]
[1768986630051,0.001,2971.3,2970.9,9.39222543]
[1768986633444,0.04306912,2971.3,2970.9,9.39222543]
[1768986633839,0.001,2971.3,2970.9,9.39222543]
[1768986634960,10.30001357,2971.3,2970.9,9.39222543]
[1768986635952,10.30001357,2971.3,2970.9,0.001]
[1768986636155,0.04207054,2971.2,2970.9,0.001]
[1768986636456,8.24483427,2971.2,2970.9,0.001]
[1768986636756,8.20613082,2971.2,2970.9,0.001]
[1768986637945,10.30001357,2971.3,2970.9,0.001]
[1768986641363,0.001,2971.3,2970.9,9.39222543]
[1768986642774,10.30001357,2971.3,2970.9,9.39222543]
[1768986643368,10.30001357,2971.3,2970.9,0.001]
[1768986643575,10.33771702,2971.2,2970.9,0.001]
[1768986643874,10.29901357,2971.2,2970.9,0.001]
[1768986645266,0.001,2971.3,2970.9,9.58251772]
[1768986649980,9.23422456,2971.3,2970.9,9.58251772]
[1768986650874,9.23422456,2971.3,2971.1,0.001]
[1768986653584,9.27192801,2971.2,2970.9,0.001]
[1768986653792,9.23322456,2971.2,2970.9,0.001]
[1768986653960,0.03870345,2971.1,2970.9,0.001]
[1768986654456,9.23322456,2971.0,2970.9,0.001]
[1768986654979,9.23322456,2971.2,2970.9,0.001]
[1768986660310,0.001,2971.3,2970.9,9.58251772]
[1768986660467,0.001,2971.3,2971.1,9.58151772]
[1768986661805,0.001,2971.3,2970.9,9.43934269]
[1768986662866,0.001,2971.3,2971.1,0.001]
[1768986663291,0.03970345,2971.3,2971.1,0.001]
[1768986663504,0.001,2971.3,2971.1,0.001]
[1768986664672,9.09249955,2971.2,2971.1,0.001]
[1768986665498,10.0018495,2971.2,2970.6,0.002]
[1768986667098,9.09249955,2971.0,2970.6,0.002]
[1768986667307,9.09249955,2970.8,2970.6,0.002]
[1768986668498,9.09249955,2970.8,2970.4,0.002]
[1768986672004,0.03870345,2970.7,2970.4,0.002]
[1768986672228,9.09249955,2970.6,2970.4,0.002]
[1768986672502,10.0017495,2970.5,2970.4,0.002]
[1768986672679,10.0017495,2970.5,2969.9,9.43834269]
[1768986673891,9.09249955,2971.1,2969.9,9.43834269]
[1768986674208,9.09249955,2970.9,2970.1,9.43834269]
[1768986674406,9.09249955,2970.7,2970.1,9.43834269]
[1768986674706,0.03870345,2970.6,2970.1,9.43834269]
[1768986675109,9.131203,2970.6,2970.1,9.43834269]
[1768986675424,9.09249955,2970.6,2970.1,9.43834269]
[1768986676929,9.25307366,2970.5,2970.1,9.43834269]
[1768986677099,9.21437021,2970.5,2969.9,9.4477508]
[1768986678014,9.25307366,2970.4,2969.9,9.4477508]
[1768986678322,9.21437021,2970.4,2969.8,9.4497508]
[1768986678523,9.21437021,2970.2,2969.8,0.002]
[1768986682111,0.03870345,2970.1,2969.8,0.002]
[1768986682930,0.03870345,2970.1,2969.8,9.4497508]
[1768986683135,3.36604496,2970.9,2970.1,9.4477508]
[1768986683136,9.21437021,2970.9,2970.1,9.4477508]
[1768986683319,10.17471068,2970.8,2970.1,9.4477508]
[1768986683630,10.13600723,2970.8,2970.1,9.4477508]
[1768986684429,0.03870345,2970.7,2970.1,9.4477508]
[1768986684736,9.21437021,2970.6,2970.1,9.4477508]